bitfinex/quotes_BTCUSD_20251120
["timestamp","ask_amount","ask_price","bid_price","bid_amount"]
[1763600932216,0.01083059,92331.0,92328.0,0.01083095]
[1763600932379,0.21661616,92330.0,92328.0,0.01083095]
[1763600932579,0.2166169,92329.0,92327.0,0.22744793]
[1763600932779,0.01083036,92333.0,92327.0,0.22744793]
[1763600932780,0.05210249,92335.0,92329.0,0.06083083]
[1763600932989,0.001,92333.0,92331.0,0.21661157]
[1763600933352,0.01083118,92326.0,92324.0,0.00368]
[1763600933522,0.24352804,92328.0,92326.0,0.21662326]
[1763600933723,0.21662135,92327.0,92324.0,0.23113866]
[1763600933928,0.01607591,92326.0,92324.0,0.23113866]
[1763600934715,0.01607591,92326.0,92324.0,0.22745866]
[1763600935146,0.01607591,92326.0,92325.0,0.21662604]
[1763600935346,0.01707591,92326.0,92324.0,0.22745866]
[1763600935983,0.01607591,92326.0,92324.0,0.22745866]
[1763600936183,0.01607591,92326.0,92325.0,0.21662604]
[1763600936483,0.22744554,92330.0,92327.0,0.01083106]
[1763600936704,0.01607591,92329.0,92327.0,0.01083106]
[1763600937665,0.01607591,92330.0,92328.0,0.21661901]
[1763600937872,0.01607591,92330.0,92327.0,0.01083106]
[1763600938075,0.21761666,92329.0,92326.0,0.22745335]
[1763600938280,0.21662135,92327.0,92325.0,0.0108313]
[1763600939146,0.22745241,92327.0,92324.0,0.22745969]
[1763600939322,0.001,92330.0,92329.0,0.21661666]
[1763600939704,0.001,92330.0,92329.0,0.26661666]
[1763600939903,0.001,92330.0,92329.0,0.21661666]
[1763600940113,0.001,92330.0,92325.0,0.0108313]
[1763600940114,0.001,92330.0,92324.0,0.05]
[1763600940339,0.21661653,92330.0,92326.0,0.21662138]
[1763600940633,0.0108313,92325.0,92322.0,0.00368]
[1763600940842,0.0108313,92325.0,92322.0,0.22031291]
[1763600941179,0.01607591,92325.0,92323.0,0.21663071]
[1763600941387,0.001,92330.0,92327.0,0.01083106]
[1763600941587,0.001,92330.0,92328.0,0.21661901]
[1763600941825,0.23269022,92330.0,92325.0,0.0108313]
[1763600941996,0.01083118,92326.0,92322.0,0.231143]
[1763600942212,0.001,92325.0,92324.0,0.2774598]
[1763600942409,0.001,92325.0,92324.0,0.6413298]
[1763600943357,0.00823,92357.0,92345.0,0.21657913]
[1763600943511,0.01607591,92356.0,92345.0,0.24502913]
[1763600943696,0.01607591,92356.0,92345.0,0.26961913]
[1763600944103,0.01607591,92356.0,92345.0,0.31961913]
[1763600944354,0.00823,92357.0,92345.0,0.42991163]
[1763600945205,0.01607591,92374.0,92345.0,0.37991163]
[1763600945402,0.01082684,92363.0,92345.0,0.37991163]
[1763600945735,0.2165418,92361.0,92345.0,0.37991163]
[1763600945999,0.22737381,92359.0,92345.0,0.42991163]
[1763600946434,0.01082743,92358.0,92345.0,0.42991163]
[1763600946566,0.01082708,92361.0,92345.0,0.42991163]
[1763600946765,0.21654668,92359.0,92345.0,0.37991163]
[1763600946996,0.01082731,92359.0,92345.0,0.37991163]
[1763600947169,0.21654975,92358.0,92345.0,0.37991163]
[1763600947385,0.01082754,92357.0,92345.0,0.42991163]
[1763600947707,0.00823,92363.0,92345.0,0.37991163]
[1763600947909,0.00823,92363.0,92345.0,0.42991163]
[1763600948111,0.02690134,92375.0,92345.0,0.42991163]
[1763600948294,0.01082567,92373.0,92345.0,0.42991163]
[1763600948557,0.01607591,92372.0,92345.0,0.42991163]
[1763600948921,0.01082637,92367.0,92345.0,0.42991163]
[1763600949166,0.01082684,92363.0,92345.0,0.37991163]
[1763600949370,0.01607591,92363.0,92345.0,0.42991163]
[1763600949575,0.22736771,92362.0,92345.0,0.37991163]
[1763600949776,0.01082825,92351.0,92345.0,0.35532163]
[1763600949936,0.01082813,92352.0,92345.0,0.35900163]
[1763600950139,0.21772337,92346.0,92336.0,0.02459]
[1763600950346,0.01607591,92345.0,92343.0,0.1102925]
[1763600950899,0.00114659,92346.0,92345.0,0.21657913]
[1763600951110,0.00114659,92346.0,92345.0,0.28285913]
[1763600951229,0.00114659,92346.0,92345.0,0.30744913]
[1763600951431,0.00114659,92346.0,92345.0,0.25744913]
[1763600951859,0.00114659,92346.0,92345.0,0.30744913]
[1763600952467,0.00114659,92346.0,92345.0,0.25744913]
[1763600952646,0.00114659,92346.0,92345.0,0.30744913]
[1763600953051,0.00114659,92346.0,92345.0,0.21657913]
[1763600953250,0.00114659,92346.0,92345.0,0.22025913]
[1763600953453,0.00114659,92346.0,92345.0,0.23653913]
[1763600953674,0.00114659,92346.0,92345.0,0.01996]
[1763600953842,0.00114659,92346.0,92345.0,0.01628]
[1763600954048,0.00114659,92346.0,92345.0,0.00368]
[1763600954282,0.00114659,92346.0,92345.0,0.22025913]
[1763600955448,0.00114659,92346.0,92345.0,0.21657913]
[1763600955648,0.00114659,92346.0,92345.0,0.22025913]
[1763600956375,0.00114659,92346.0,92345.0,0.26112913]
[1763600956985,0.00114659,92346.0,92345.0,0.31112913]
[1763600957439,0.00114659,92346.0,92345.0,0.30744913]
[1763600957642,0.00114659,92346.0,92345.0,0.26112913]
[1763600958872,0.00114659,92346.0,92345.0,0.31112913]
[1763600959234,0.00114659,92346.0,92345.0,0.26112913]
[1763600959661,0.00114659,92346.0,92345.0,0.31112913]
[1763600964792,0.00114659,92346.0,92345.0,0.26112913]
[1763600964988,0.00114659,92346.0,92345.0,0.31112913]
[1763600966817,0.00114659,92346.0,92345.0,0.26112913]
[1763600967437,0.00114659,92346.0,92345.0,0.31112913]
[1763600967837,0.00114659,92346.0,92345.0,0.26112913]
[1763600968039,0.00114659,92346.0,92345.0,0.31112913]
[1763600968236,0.00114659,92346.0,92345.0,0.25744913]
[1763600968443,0.00114659,92346.0,92345.0,0.30744913]
[1763600968648,0.00114659,92346.0,92345.0,0.26112913]
[1763600969050,0.00114659,92346.0,92345.0,0.31112913]
[1763600969374,0.00114659,92346.0,92345.0,0.26112913]
[1763600969598,0.00114659,92346.0,92345.0,0.21657913]
[1763600969894,0.00114659,92346.0,92345.0,0.22025913]
[1763600970830,0.01082895,92345.0,92342.0,0.1474]
[1763600971052,0.21659341,92339.0,92337.0,0.00012637]
[1763600971208,0.21659341,92339.0,92338.0,0.00368]
[1763600971395,0.22742068,92340.0,92338.0,0.00368]
[1763600971597,0.2165932,92339.0,92338.0,0.00368]
[1763600971799,0.21658372,92344.0,92338.0,0.00368]
[1763600972145,0.21658647,92342.0,92340.0,0.01082954]
[1763600972349,0.02029743,92341.0,92339.0,0.22742286]
[1763600972716,0.02029743,92341.0,92339.0,0.01082966]
[1763600973386,0.22741593,92342.0,92339.0,0.01082966]
[1763600973658,0.23690074,92341.0,92338.0,0.00368]
[1763600973986,0.22741831,92341.0,92338.0,0.22027492]
[1763600974137,0.2165862,92342.0,92339.0,0.21659314]
[1763600974664,0.01082872,92347.0,92340.0,0.22742039]
[1763600974858,0.21658382,92343.0,92341.0,0.21658845]
[1763600975075,0.02030983,92342.0,92340.0,0.22742039]
[1763600975253,0.21658382,92343.0,92340.0,0.01082954]
[1763600975457,0.01082907,92344.0,92340.0,0.01082954]
[1763600975662,0.22741362,92343.0,92339.0,0.01082966]
[1763600975860,0.2274159,92342.0,92339.0,0.22741821]
[1763600976394,0.01082942,92341.0,92338.0,0.00368]
[1763600976614,0.2165932,92339.0,92338.0,0.00368]
[1763600976827,0.01082942,92341.0,92338.0,0.00368]
[1763600976828,0.21659127,92340.0,92338.0,0.00368]
[1763600977033,0.21659555,92338.0,92337.0,0.00012637]
[1763600977248,0.28407804,92338.0,92337.0,0.00012637]
[1763600977440,0.32802214,92338.0,92337.0,0.00012637]
[1763600977693,0.65102214,92338.0,92337.0,0.00012637]
[1763600978103,0.0203041,92338.0,92337.0,0.00012637]
[1763600978311,0.05210249,92342.0,92337.0,0.00012637]
[1763600978467,0.02029759,92341.0,92337.0,0.00012637]
[1763600978703,0.02029759,92340.0,92338.0,0.21659544]
[1763600978911,0.05210249,92343.0,92341.0,0.21658851]
[1763600979238,0.00114659,92346.0,92345.0,0.21657913]
[1763600979450,0.00114659,92346.0,92345.0,0.26657913]
[1763600979691,0.00114659,92346.0,92340.0,0.01082954]
[1763600979692,0.22741608,92342.0,92339.0,0.00368]
[1763600979838,0.00897,92340.0,92339.0,0.00368]
[1763600980245,0.01607591,92344.0,92342.0,0.21658571]
[1763600980431,0.00114659,92346.0,92345.0,0.21657913]
[1763600980828,0.01082954,92340.0,92337.0,0.00012637]
[1763600981029,0.01607591,92344.0,92338.0,0.00368]
[1763600981213,0.02504591,92344.0,92341.0,0.21658723]
[1763600981616,0.02504591,92344.0,92341.0,0.21658851]
[1763600981858,0.02504591,92344.0,92340.0,0.01082954]
[1763600982080,0.03587498,92344.0,92340.0,0.01082954]
[1763600982287,0.25245702,92344.0,92340.0,0.22742031]
[1763600982476,0.21658431,92343.0,92340.0,0.22742031]
[1763600982636,0.02690521,92342.0,92338.0,0.01450977]
[1763600982844,0.2165932,92339.0,92338.0,0.00368]
[1763600983664,0.21659555,92338.0,92337.0,0.00012637]
[1763600983910,0.25561555,92338.0,92337.0,0.00012637]
[1763600984281,0.01538,92338.0,92337.0,0.00012637]
[1763600984601,0.23197555,92338.0,92337.0,0.00012637]
[1763600985151,0.30771804,92338.0,92337.0,0.00012637]
[1763600986776,0.30771804,92338.0,92324.0,0.00368]
[1763600986777,0.22744421,92331.0,92327.0,0.04493344]
[1763600986983,0.22744421,92331.0,92326.0,0.01083118]
[1763600986984,0.22744875,92329.0,92326.0,0.01083118]
[1763600987298,0.22744875,92329.0,92325.0,0.22745507]
[1763600987425,0.21662195,92327.0,92324.0,0.01511]
[1763600987630,0.21662438,92326.0,92324.0,0.01511]
[1763600988462,0.21662404,92326.0,92324.0,0.01511]
[1763600988865,0.22745301,92327.0,92324.0,0.23173838]
[1763600989567,0.22745416,92327.0,92324.0,0.23173838]
[1763600989896,0.05210249,92339.0,92330.0,0.05]
[1763600990047,0.05210249,92332.0,92330.0,0.216614]
[1763600990246,0.05210249,92333.0,92331.0,0.22744256]
[1763600990685,0.05210249,92334.0,92331.0,0.22744256]
[1763600990864,0.2165859,92343.0,92339.0,0.22742063]
[1763600991198,0.27952516,92340.0,92335.0,0.01143]
[1763600991396,0.06293203,92340.0,92335.0,0.02226012]
[1763600991599,0.05210249,92340.0,92337.0,0.01082989]
[1763600991766,0.05210249,92341.0,92339.0,0.01082966]
[1763600991953,0.01082977,92338.0,92335.0,0.01143]
[1763600992149,0.21659796,92337.0,92335.0,0.01143]
[1763600993131,0.21660024,92336.0,92335.0,0.01143]
[1763600993286,0.2274298,92338.0,92335.0,0.01143]
[1763600993492,0.2274298,92338.0,92335.0,0.22803199]
[1763600993891,0.21659796,92337.0,92335.0,0.01143]
[1763600995013,0.2166002,92337.0,92335.0,0.01143]
[1763600995423,0.05210249,92343.0,92342.0,0.21658616]
[1763600995598,0.05210249,92343.0,92340.0,0.22741853]
[1763600995808,0.05210249,92343.0,92341.0,0.21658759]
[1763600996009,0.05210249,92343.0,92341.0,0.21658851]
[1763600996413,0.05210249,92343.0,92342.0,0.21658616]
[1763600996596,0.05210249,92343.0,92341.0,0.21658851]
[1763600997022,0.05210249,92343.0,92342.0,0.21658616]
[1763601000341,0.00897,92344.0,92343.0,0.21658382]
[1763601000570,0.01607591,92349.0,92346.0,0.01082883]
[1763601000701,0.03261,92356.0,92346.0,0.01082883]
[1763601000702,0.00897,92356.0,92355.0,0.21655568]
[1763601000889,0.0090964,92356.0,92355.0,0.26655568]
[1763601001089,0.0090964,92356.0,92355.0,0.21655568]
[1763601001289,0.0001264,92356.0,92355.0,0.21655568]
[1763601001729,0.0001264,92356.0,92355.0,0.26655568]
[1763601002356,0.0001264,92356.0,92355.0,0.05]
[1763601002559,0.0001264,92356.0,92355.0,0.26655568]
[1763601002768,0.0001264,92356.0,92355.0,0.30592568]
[1763601002940,0.0001264,92356.0,92355.0,0.25592568]
[1763601003141,0.0001264,92356.0,92355.0,0.30592568]
[1763601003546,0.0001264,92356.0,92355.0,0.25592568]
[1763601003760,0.0001264,92356.0,92355.0,0.30592568]
[1763601004104,0.0001264,92356.0,92355.0,0.01566]
[1763601004244,0.0001264,92356.0,92355.0,0.23589568]
[1763601005185,0.0001264,92356.0,92355.0,0.23221568]
[1763601005386,0.0001264,92356.0,92355.0,0.23589568]
[1763601006008,0.0001264,92356.0,92355.0,0.22023568]
[1763601006508,0.0001264,92356.0,92355.0,0.21655568]
[1763601006710,0.0001264,92356.0,92355.0,0.28589568]
[1763601006911,0.0001264,92356.0,92355.0,0.23589568]
[1763601007127,0.0001264,92356.0,92353.0,0.06082801]
[1763601007128,0.0001264,92356.0,92353.0,0.01082801]
[1763601007322,0.01082837,92350.0,92343.0,0.12112169]
[1763601007495,0.21657462,92347.0,92344.0,0.00368]
[1763601007694,0.01082954,92340.0,92335.0,0.01143]
[1763601007901,0.23565358,92339.0,92336.0,0.00368]
[1763601008098,0.21359564,92338.0,92336.0,0.00368]
[1763601008298,0.23565324,92339.0,92336.0,0.23110838]
[1763601008499,0.01082813,92352.0,92349.0,0.01082848]
[1763601008710,0.01082825,92351.0,92347.0,0.21657217]
[1763601008947,0.21656831,92350.0,92347.0,0.21657217]
[1763601009146,0.01082813,92352.0,92348.0,0.24028209]
[1763601009350,0.01607591,92352.0,92350.0,0.01566]
[1763601009554,0.0001264,92356.0,92354.0,0.21655753]
[1763601009883,0.0001264,92356.0,92355.0,0.23221568]
[1763601010171,0.0001264,92356.0,92355.0,0.25592568]
[1763601010373,0.0001264,92356.0,92355.0,0.30592568]
[1763601010573,0.0001264,92356.0,92355.0,0.25592568]
[1763601010781,0.0001264,92356.0,92355.0,0.30592568]
[1763601011970,0.0001264,92356.0,92355.0,0.25592568]
[1763601012132,0.0001264,92356.0,92355.0,0.30592568]
[1763601012738,0.0001264,92356.0,92355.0,0.30960568]
[1763601017963,0.0001264,92356.0,92355.0,0.25960568]
[1763601018177,0.0001264,92356.0,92355.0,0.30960568]
[1763601019832,0.0001264,92356.0,92355.0,0.25960568]
[1763601019999,0.0001264,92356.0,92355.0,0.30960568]
[1763601021032,0.0001264,92356.0,92355.0,0.25960568]
[1763601021259,0.0001264,92356.0,92355.0,0.30960568]
[1763601021464,0.0001264,92356.0,92355.0,0.25960568]
[1763601022026,0.0001264,92356.0,92355.0,0.30960568]
[1763601022226,0.0001264,92356.0,92355.0,0.25592568]
[1763601022447,0.0001264,92356.0,92355.0,0.30960568]
[1763601022658,0.0001264,92356.0,92355.0,0.25592568]
[1763601022829,0.0001264,92356.0,92355.0,0.28589568]
[1763601023035,0.0001264,92356.0,92355.0,0.30960568]
[1763601023256,0.0001264,92356.0,92355.0,0.25960568]
[1763601024277,0.0001264,92356.0,92355.0,0.30960568]
[1763601024479,0.0001264,92356.0,92355.0,0.30592568]
[1763601024627,0.0001264,92356.0,92355.0,0.30960568]
[1763601025029,0.0001264,92356.0,92355.0,0.25960568]
[1763601025232,0.21657444,92347.0,92346.0,0.01242]
[1763601025805,0.22740013,92349.0,92346.0,0.03176]
[1763601025985,0.01095406,92356.0,92346.0,0.03176]
[1763601025986,0.0001264,92356.0,92355.0,0.21655568]
[1763601026298,0.0001264,92356.0,92355.0,0.23221568]
[1763601026473,0.0001264,92356.0,92355.0,0.01566]
[1763601026673,0.21655847,92354.0,92351.0,0.21656424]
[1763601026875,0.2274008,92348.0,92343.0,0.21658362]
[1763601027084,0.0108286,92348.0,92345.0,0.12112145]
[1763601027283,0.22740265,92348.0,92346.0,0.02165767]
[1763601027487,0.21657444,92347.0,92346.0,0.02165767]
[1763601027696,0.22740265,92348.0,92345.0,0.32687063]
[1763601027897,0.00897,92357.0,92355.0,0.21655568]
[1763601029032,0.0108279,92354.0,92351.0,0.01569]
[1763601029207,0.21656271,92352.0,92351.0,0.00368]
[1763601030717,0.21656271,92352.0,92351.0,0.01901]
[1763601031562,0.21656271,92352.0,92351.0,0.01533]
[1763601031761,0.21656271,92352.0,92351.0,0.01901]
[1763601032570,0.0001264,92356.0,92351.0,0.01901]
[1763601032571,0.0001264,92356.0,92355.0,0.21655568]
[1763601032749,0.0001264,92356.0,92355.0,0.28230568]
[1763601032954,0.0001264,92356.0,92355.0,0.23230568]
[1763601034293,0.0001264,92356.0,92355.0,0.28230568]
[1763601034493,0.0001264,92356.0,92355.0,0.23230568]
[1763601034699,0.0001264,92356.0,92355.0,0.28230568]
[1763601034812,0.0001264,92356.0,92355.0,0.23230568]
[1763601035429,0.0001264,92356.0,92355.0,0.30540568]
[1763601035665,0.0001264,92356.0,92355.0,0.25540568]
[1763601036390,0.0001264,92356.0,92355.0,0.30540568]
[1763601036997,0.0001264,92356.0,92355.0,0.25540568]
[1763601037224,0.0001264,92356.0,92355.0,0.30540568]
[1763601037441,0.0001264,92356.0,92355.0,0.25540568]
[1763601037908,0.0001264,92356.0,92355.0,0.30540568]
[1763601041492,0.0001264,92356.0,92355.0,0.25540568]
[1763601041809,0.0001264,92356.0,92355.0,0.25908568]
[1763601042817,0.0001264,92356.0,92355.0,0.30908568]
[1763601043021,0.0001264,92356.0,92355.0,0.25908568]
[1763601043226,0.0001264,92356.0,92350.0,0.323]
[1763601043425,0.01082813,92352.0,92348.0,0.0108286]
[1763601043626,0.22739134,92352.0,92351.0,0.00368]
[1763601043830,0.22738637,92354.0,92351.0,0.00368]
[1763601044051,0.21656089,92353.0,92351.0,0.00368]
[1763601044258,0.21656147,92353.0,92351.0,0.00368]
[1763601044458,0.21656271,92352.0,92351.0,0.00368]
[1763601044654,0.21656271,92352.0,92351.0,0.0006036]
[1763601045777,0.21647071,92352.0,92351.0,0.0006036]
[1763601047617,0.21657283,92348.0,92346.0,0.01082883]
[1763601047929,0.01082848,92349.0,92347.0,0.00368]
[1763601048134,0.21657209,92348.0,92347.0,0.00368]
[1763601048335,0.01082977,92338.0,92331.0,0.22744238]
[1763601048479,0.01082977,92338.0,92336.0,0.00368]
[1763601048685,0.21659817,92337.0,92336.0,0.00368]
[1763601049108,0.21660329,92335.0,92331.0,0.21660986]
[1763601049323,0.22743599,92334.0,92330.0,0.02325071]
[1763601049536,0.22742815,92337.0,92333.0,0.22743574]
[1763601049716,0.22742815,92337.0,92333.0,0.01083036]
[1763601049922,0.22743115,92336.0,92331.0,0.01451059]
[1763601050138,0.21660422,92335.0,92331.0,0.01451059]
[1763601050335,0.22743074,92336.0,92333.0,0.21660672]
[1763601050524,0.00823,92339.0,92338.0,0.21659555]
[1763601051523,0.01082977,92338.0,92335.0,0.01083012]
[1763601051727,0.21660001,92337.0,92335.0,0.00368]
[1763601052379,0.21659789,92337.0,92335.0,0.00368]
[1763601053709,0.00823,92339.0,92336.0,0.01083001]
[1763601053909,0.00823,92339.0,92338.0,0.21659555]
[1763601054786,0.0001264,92356.0,92350.0,0.01082837]
[1763601054987,0.22738549,92355.0,92352.0,0.22739084]
[1763601055125,0.23275608,92356.0,92354.0,0.21655744]
[1763601055126,0.05222889,92356.0,92354.0,0.21655744]
[1763601055329,0.05222889,92356.0,92353.0,0.21655828]
[1763601055526,0.05222889,92356.0,92352.0,0.01082813]
[1763601055710,0.05222889,92356.0,92355.0,0.21655568]
[1763601055911,0.21656253,92353.0,92351.0,0.01202]
[1763601056125,0.01607591,92352.0,92351.0,0.22858506]
[1763601056675,0.01607591,92352.0,92351.0,0.01202]
[1763601056877,0.21656975,92349.0,92340.0,0.79765688]
[1763601057098,0.21656975,92349.0,92343.0,0.22741139]
[1763601057099,0.2274053,92347.0,92343.0,0.22741139]
[1763601057759,0.00823,92348.0,92344.0,0.22740857]
[1763601057978,0.22480408,92348.0,92345.0,0.21657876]
[1763601058330,0.22480408,92348.0,92324.0,0.02226141]
[1763601058331,0.01083036,92333.0,92324.0,0.02226141]
[1763601058551,0.05210249,92342.0,92331.0,0.01083059]
[1763601058749,0.06293179,92342.0,92337.0,0.01082989]
[1763601059105,0.06293168,92343.0,92340.0,0.21659061]
[1763601059304,0.01082942,92341.0,92336.0,0.22742813]
[1763601059512,0.22741744,92342.0,92339.0,0.01082966]
[1763601059716,0.21659142,92340.0,92337.0,0.22742334]
[1763601059925,0.01082942,92341.0,92339.0,0.2165932]
[1763601060062,0.0108293,92342.0,92340.0,0.21659085]
[1763601060266,0.05210249,92343.0,92341.0,0.02777]
[1763601060462,0.26868631,92343.0,92342.0,0.01575]
[1763601060857,0.05210249,92343.0,92342.0,0.01575]
[1763601061659,0.05210249,92343.0,92342.0,0.23233616]
[1763601061860,0.05210249,92343.0,92342.0,0.01575]
[1763601062247,0.05210249,92343.0,92342.0,0.23233616]
[1763601062445,0.0108279,92354.0,92347.0,0.21657371]
[1763601062643,0.05210249,92348.0,92346.0,0.22740143]
[1763601062848,0.05210249,92354.0,92351.0,0.22739125]
[1763601063170,0.00897,92357.0,92354.0,0.21655802]
[1763601063371,0.01607591,92362.0,92355.0,0.21655568]
[1763601063582,0.01082743,92358.0,92354.0,0.01592]
[1763601063730,0.01620231,92356.0,92355.0,0.25621568]
[1763601063930,0.0001264,92356.0,92355.0,0.25621568]
[1763601064791,0.0001264,92356.0,92355.0,0.30621568]
[1763601065353,0.0001264,92356.0,92355.0,0.25621568]
[1763601065553,0.0001264,92356.0,92355.0,0.36650818]
[1763601065759,0.0001264,92356.0,92355.0,0.41650818]
[1763601066289,0.0001264,92356.0,92355.0,0.41472482]
[1763601067464,0.0001264,92356.0,92355.0,0.36472482]
[1763601067672,0.0001264,92356.0,92355.0,0.41472482]
[1763601067893,0.0001264,92356.0,92355.0,0.36472482]
[1763601068107,0.0001264,92356.0,92355.0,0.41472482]
[1763601068310,0.0001264,92356.0,92355.0,0.19816914]
[1763601068513,0.0001264,92356.0,92355.0,0.14816914]
[1763601068921,0.0001264,92356.0,92355.0,0.36472482]
[1763601069355,0.0001264,92356.0,92355.0,0.36840482]
[1763601069729,0.0001264,92356.0,92355.0,0.15184914]
[1763601069937,0.0001264,92356.0,92355.0,0.36840482]
[1763601070257,0.0001264,92356.0,92355.0,0.36472482]
[1763601070419,0.0001264,92356.0,92355.0,0.36840482]
[1763601070614,0.0001264,92356.0,92355.0,0.1139725]
[1763601070615,0.21667973,92356.0,92355.0,0.1139725]
[1763601071019,0.21667973,92356.0,92355.0,0.00368]
[1763601071559,0.21656321,92352.0,92350.0,0.1474]
[1763601071757,0.21656506,92351.0,92350.0,0.1474]
[1763601071957,0.21656506,92351.0,92350.0,0.15108]
[1763601073559,0.21656506,92351.0,92350.0,0.1474]
[1763601073753,0.21656506,92351.0,92350.0,0.15108]
[1763601074216,0.21656506,92351.0,92350.0,0.00368]
[1763601075506,0.22739577,92350.0,92346.0,0.22740548]
[1763601075705,0.02695872,92347.0,92335.0,0.01083012]
[1763601076029,0.21657893,92346.0,92342.0,0.22741493]
[1763601076204,0.21657893,92346.0,92341.0,0.21658632]
[1763601076205,0.22741101,92344.0,92340.0,0.22742035]
[1763601076404,0.22740873,92345.0,92342.0,0.22741333]
[1763601076825,0.01082895,92345.0,92341.0,0.23934759]
[1763601077029,0.21658155,92344.0,92341.0,0.23934759]
[1763601077232,0.01082895,92345.0,92342.0,0.21658585]
[1763601077411,0.2274081,92345.0,92342.0,0.21613556]
[1763601077813,0.22741013,92346.0,92343.0,0.22741213]
[1763601078020,0.01905872,92347.0,92344.0,0.01082907]
[1763601078214,0.01082872,92347.0,92345.0,0.21657913]
[1763601078416,0.22740441,92347.0,92344.0,0.01082907]
[1763601078614,0.01082883,92346.0,92343.0,0.22741213]
[1763601078815,0.01082883,92346.0,92344.0,0.21658102]
[1763601079021,0.22740441,92347.0,92344.0,0.01082907]
[1763601079217,0.2165799,92345.0,92343.0,0.22741242]
[1763601079480,0.22740885,92345.0,92342.0,0.22741506]
[1763601080299,0.22740885,92345.0,92341.0,0.02193]
[1763601080300,0.21658571,92343.0,92341.0,0.02193]
[1763601080508,0.21658616,92342.0,92341.0,0.02193]
[1763601080922,0.21658425,92343.0,92341.0,0.02193]
[1763601081061,0.21658616,92342.0,92341.0,0.02193]
[1763601082343,0.01083012,92335.0,92332.0,0.01202]
[1763601082549,0.22743707,92335.0,92334.0,0.01]
[1763601083285,0.22743707,92335.0,92334.0,0.01368]
[1763601083446,0.01082989,92337.0,92334.0,0.0296]
[1763601083650,0.01082989,92337.0,92335.0,0.01]
[1763601083848,0.22742611,92338.0,92336.0,0.01592]
[1763601084052,0.22742611,92338.0,92337.0,0.01592]
[1763601085592,0.21660024,92336.0,92335.0,0.01]
[1763601086157,0.21660024,92336.0,92335.0,0.02592]
[1763601086748,0.21660024,92336.0,92335.0,0.0296]
[1763601088220,0.21660024,92336.0,92335.0,0.05417]
[1763601088423,0.21660024,92336.0,92335.0,0.05049]
[1763601088620,0.21660024,92336.0,92335.0,0.02592]
[1763601089215,0.21660024,92336.0,92335.0,0.00368]
[1763601091393,0.05210249,92348.0,92346.0,0.21657651]
[1763601091600,0.05210249,92351.0,92345.0,0.01082895]
[1763601091854,0.29557372,92351.0,92346.0,0.22740561]
[1763601092066,0.06293074,92351.0,92347.0,0.2274009]
[1763601092275,0.21656611,92351.0,92348.0,0.22739927]
[1763601092452,0.05210249,92350.0,92348.0,0.22739927]
[1763601092947,0.05210249,92350.0,92344.0,0.21658095]
[1763601092948,0.01082907,92344.0,92327.0,0.21662111]
[1763601093160,0.01082977,92338.0,92334.0,0.2266029]
[1763601093344,0.05210249,92348.0,92345.0,0.01082895]
[1763601093529,0.05210249,92346.0,92345.0,0.22740647]
[1763601093732,0.05210249,92346.0,92344.0,0.22890956]
[1763601093931,0.05210249,92346.0,92345.0,0.21657913]
[1763601094165,0.05210249,92348.0,92346.0,0.21657542]
[1763601094694,0.26867485,92348.0,92346.0,0.21657542]
[1763601095045,0.05210249,92348.0,92346.0,0.21657542]
[1763601095268,0.26867524,92348.0,92346.0,0.21657542]
[1763601095609,0.05210249,92348.0,92347.0,0.21657444]
[1763601095783,0.05210249,92348.0,92346.0,0.21657542]
[1763601095930,0.26867524,92348.0,92345.0,0.22740777]
[1763601096138,0.26867524,92348.0,92344.0,0.22890956]
[1763601096139,0.21657709,92346.0,92344.0,0.01233]
[1763601096352,0.23689053,92349.0,92345.0,0.21657899]
[1763601096628,0.23689053,92349.0,92346.0,0.21657658]
[1763601097161,0.23689053,92349.0,92347.0,0.21657417]
[1763601097353,0.21655768,92355.0,92347.0,0.21657417]
[1763601097354,0.05210249,92357.0,92351.0,0.21656502]
[1763601097552,0.05210249,92354.0,92351.0,0.21656502]
[1763601097748,0.05210249,92352.0,92350.0,0.22739158]
[1763601097953,0.05210249,92352.0,92351.0,0.21656506]
[1763601098189,0.23634842,92358.0,92355.0,0.21655568]
[1763601098190,0.05222889,92356.0,92355.0,0.21655568]
[1763601098370,0.0001264,92356.0,92355.0,0.21655568]
[1763601098570,0.0001264,92356.0,92355.0,0.25792568]
[1763601098778,0.0001264,92356.0,92355.0,0.26160568]
[1763601098978,0.0001264,92356.0,92355.0,0.31160568]
[1763601100653,0.0001264,92356.0,92355.0,0.09505]
[1763601100856,0.01082813,92352.0,92346.0,0.01]
[1763601101209,0.0108279,92354.0,92353.0,0.21656037]
[1763601101210,0.01607591,92354.0,92353.0,0.21656037]
[1763601101344,0.0001264,92356.0,92355.0,0.22655568]
[1763601102378,0.0001264,92356.0,92355.0,0.26792568]
[1763601113376,0.0001264,92356.0,92355.0,0.59092568]
[1763601113577,0.0001264,92356.0,92355.0,0.73832568]
[1763601113778,0.0001264,92356.0,92355.0,0.77085]
[1763601114603,0.0001264,92356.0,92355.0,0.54429432]
[1763601114809,0.0001264,92356.0,92355.0,0.55429432]
[1763601115013,4.041e-05,92390.0,92355.0,0.55429432]
[1763601115014,0.01607591,92387.0,92386.0,0.21648301]
[1763601115278,0.00932,92429.0,92398.0,0.5894549]
[1763601115553,0.00011768,92399.0,92398.0,0.5931549]
[1763601115725,0.00011768,92399.0,92398.0,0.6068349]
[1763601116329,0.00011768,92399.0,92398.0,0.7171274]
[1763601120769,0.00011768,92399.0,92398.0,0.7134474]
[1763601120947,0.00011768,92399.0,92398.0,0.7171274]
[1763601124837,0.00011768,92399.0,92398.0,0.8645274]
[1763601132385,0.0004,92420.0,92419.0,0.23640571]
[1763601132615,0.00082135,92420.0,92419.0,0.26784571]
[1763601132818,0.00082135,92420.0,92419.0,0.29238571]
[1763601137686,0.00082135,92420.0,92419.0,0.04776]
[1763601137933,0.00082135,92420.0,92419.0,0.03516]
[1763601137934,0.02100206,92420.0,92419.0,0.03516]
[1763601138084,0.02100206,92420.0,92419.0,0.05144]
[1763601138287,0.23740543,92420.0,92419.0,0.07598]
[1763601138690,0.02100206,92420.0,92419.0,0.02368]
[1763601138892,0.02101114,92420.0,92419.0,0.02368]
[1763601139297,0.02101114,92420.0,92419.0,0.24008571]
[1763601139676,0.02101114,92420.0,92419.0,0.02368]
[1763601140081,0.23741451,92420.0,92418.0,0.02454]
[1763601140287,0.02018979,92419.0,92418.0,0.02454]
[1763601140587,0.02021209,92419.0,92418.0,0.02454]
[1763601140797,0.02021209,92419.0,92418.0,0.04082]
[1763601141002,0.02021209,92419.0,92418.0,0.30722805]
[1763601141648,0.2366178,92419.0,92418.0,0.05]
[1763601142548,0.02021209,92419.0,92418.0,0.05]
[1763601143511,0.02021209,92419.0,92418.0,0.06628]
[1763601143715,0.02021209,92419.0,92418.0,0.28268805]
[1763601143915,0.02021209,92419.0,92418.0,0.30722805]
[1763601144718,0.02021209,92419.0,92418.0,0.09082]
[1763601144919,0.02021209,92419.0,92418.0,0.30722805]